bitfinex-derivatives/quotes_BTCF0:USTF0_20250216
["timestamp","ask_amount","ask_price","bid_price","bid_amount"]
[1739698982487,0.54581459,97369.0,97358.0,0.032]
[1739698982680,0.2053828,97365.0,97364.0,0.2053839]
[1739698982884,0.54529458,97369.0,97358.0,0.032]
[1739698982885,0.2053855,97364.0,97358.0,0.032]
[1739698983280,0.2053954,97360.0,97358.0,0.031]
[1739698983489,0.2053954,97360.0,97359.0,0.001]
[1739698983985,0.2053955,97359.0,97358.0,0.031]
[1739698984386,0.2053955,97359.0,97358.0,0.03]
[1739698984587,0.2053955,97359.0,97358.0,0.031]
[1739698985390,0.25534257,97359.0,97358.0,0.002]
[1739698985886,0.28664257,97359.0,97358.0,0.002]
[1739698994091,0.39049547,97359.0,97358.0,0.002]
[1739698996399,0.18509997,97359.0,97346.0,0.00015411]
[1739698996702,0.5662208,97347.0,97346.0,0.00015411]
[1739698997602,0.5662208,97347.0,97346.0,0.00215411]
[1739698999302,0.5672208,97347.0,97346.0,0.00215411]
[1739699001795,0.5672208,97347.0,97346.0,1e-08]
[1739699004995,0.61717771,97347.0,97346.0,1e-08]
[1739699008803,0.5672208,97347.0,97346.0,1e-08]
[1739699018103,0.61718003,97347.0,97346.0,1e-08]
[1739699026822,0.80167461,97347.0,97346.0,1e-08]
[1739699030815,0.61718003,97347.0,97346.0,1e-08]
[1739699036727,0.61718003,97347.0,97343.0,0.0324]
[1739699036928,0.61818003,97347.0,97343.0,0.0324]
[1739699039930,0.61818003,97347.0,97343.0,0.2378292]
[1739699040635,0.04995923,97346.0,97343.0,0.2378292]
[1739699042233,0.05195923,97346.0,97343.0,0.2378292]
[1739699043733,0.15400299,97344.0,97343.0,0.2378292]
[1739699045334,0.15600299,97344.0,97343.0,0.2378292]
[1739699047937,0.002,97344.0,97343.0,0.2378292]
[1739699057643,0.2074272,97344.0,97343.0,0.2378292]
[1739699063342,0.36143019,97344.0,97343.0,0.2378292]
[1739699068043,0.36143019,97344.0,97343.0,0.0324]
[1739699070142,0.15600299,97344.0,97343.0,0.2378293]
[1739699071147,0.002,97344.0,97343.0,0.2378293]
[1739699074042,0.0135245,97344.0,97343.0,0.2378293]
[1739699086552,0.002,97344.0,97343.0,0.2378293]
[1739699100271,0.002,97344.0,97343.0,0.5986293]
[1739699102164,0.0326,97355.0,97343.0,0.3932]
[1739699102371,0.0326,97355.0,97354.0,0.5662062]
[1739699102772,0.04397575,97355.0,97354.0,0.5662062]
[1739699104162,0.04397575,97355.0,97354.0,0.5672062]
[1739699104874,0.04397575,97355.0,97354.0,0.5682062]
[1739699110478,0.0326,97355.0,97354.0,0.5682062]
[1739699123186,0.3608,97386.0,97356.0,0.0513505]
[1739699123391,0.0328,97371.0,97363.0,0.2053872]
[1739699123782,0.0328,97371.0,97363.0,0.2365872]
[1739699123980,0.01160806,97365.0,97363.0,0.2365872]
[1739699124179,0.0328,97371.0,97363.0,0.25264162]
[1739699124584,0.0328,97371.0,97363.0,0.25364162]
[1739699124992,0.2053773,97368.0,97363.0,0.25364162]
[1739699125288,0.0328,97371.0,97363.0,0.25364162]
[1739699125289,0.2053791,97367.0,97363.0,0.2375872]
[1739699125488,0.0319,97366.0,97363.0,0.2385872]
[1739699127081,0.01116747,97365.0,97363.0,0.2385872]
[1739699128788,0.01116747,97365.0,97363.0,0.002]
[1739699128994,0.20692618,97364.0,97363.0,0.002]
[1739699130791,0.00154108,97364.0,97358.0,0.1841487]
[1739699131098,0.2053957,97359.0,97358.0,0.1841487]
[1739699132096,0.2053957,97359.0,97358.0,0.1861487]
[1739699132291,0.5661957,97359.0,97358.0,0.1861487]
[1739699133001,0.5661957,97359.0,97358.0,0.002]
[1739699133804,0.3628,97359.0,97358.0,0.002]
[1739699134096,0.6667157,97359.0,97358.0,0.002]
[1739699134403,0.5681957,97359.0,97358.0,0.002]
[1739699135788,0.61814238,97359.0,97358.0,0.002]
[1739699139396,0.72206837,97359.0,97358.0,0.002]
[1739699140605,0.51667267,97359.0,97343.0,0.0311]
[1739699140901,0.2054273,97344.0,97343.0,0.0311]
[1739699141805,0.2054273,97344.0,97343.0,0.0321]
[1739699142004,0.2054273,97344.0,97343.0,0.0331]
[1739699142599,0.2064273,97344.0,97343.0,0.0321]
[1739699143500,0.2084273,97344.0,97343.0,0.0311]
[1739699143805,0.21929876,97344.0,97343.0,0.0311]
[1739699144409,0.20544,97338.0,97335.0,0.1841487]
[1739699144997,0.23724,97338.0,97335.0,0.1841487]
[1739699145498,0.26834,97338.0,97335.0,0.1841487]
[1739699145697,0.27034,97338.0,97335.0,0.1841487]
[1739699146807,0.30284,97338.0,97335.0,0.1841487]
[1739699149102,0.30284,97338.0,97334.0,0.0309]
[1739699150006,0.24124,97338.0,97334.0,0.0309]
[1739699155112,0.004,97338.0,97337.0,0.20559621]
[1739699163011,0.004,97338.0,97337.0,0.56639621]
[1739699168619,0.004,97338.0,97337.0,2.06639621]
[1739699168824,0.566199,97358.0,97337.0,1.86095411]
[1739699169021,0.566199,97358.0,97357.0,0.2053999]
[1739699170315,0.57714277,97358.0,97357.0,0.2053999]
[1739699170515,0.57914277,97358.0,97357.0,0.2063999]
[1739699173827,0.37374377,97358.0,97357.0,0.2063999]
[1739699174222,0.01294377,97358.0,97357.0,0.2063999]
[1739699182631,0.21834157,97358.0,97357.0,0.001]
[1739699191630,0.26829422,97358.0,97357.0,0.001]
[1739699197243,0.62909422,97358.0,97357.0,0.001]
[1739699197644,0.42369642,97358.0,97342.0,0.0305]
[1739699197846,0.2054295,97343.0,97342.0,0.0305]
[1739699199246,0.2054295,97343.0,97342.0,0.0315]
[1739699199838,0.2054295,97343.0,97342.0,0.0305]
[1739699214452,0.35927872,97343.0,97342.0,0.0305]
[1739699218362,0.2054295,97343.0,97342.0,0.0305]
[1739699237566,0.25538364,97343.0,97342.0,0.0305]
[1739699237773,0.20544,97338.0,97337.0,0.00015411]
[1739699239073,0.20544,97338.0,97337.0,0.00115411]
[1739699240763,0.20544,97338.0,97337.0,0.00215411]
[1739699245875,0.35949498,97338.0,97337.0,0.00215411]
[1739699250475,0.20544,97338.0,97337.0,0.00215411]
[1739699262081,0.35949498,97338.0,97337.0,0.00215411]
[1739699265983,0.72029498,97338.0,97337.0,0.00215411]
[1739699281607,0.61619664,97338.0,97337.0,0.00215411]
[1739699287113,0.56624,97338.0,97337.0,0.00215411]
[1739699288814,0.20544,97338.0,97337.0,0.00215411]
[1739699302718,0.35958506,97338.0,97337.0,0.00215411]
[1739699320934,0.20544,97338.0,97337.0,0.00215411]
[1739699345443,0.20544,97338.0,97337.0,0.20759621]
[1739699349356,0.3608,97341.0,97339.0,0.2054362]
[1739699349552,0.5662337,97341.0,97340.0,0.0317]
[1739699350054,0.5662337,97341.0,97340.0,0.2371358]
[1739699350553,0.3608,97341.0,97340.0,0.2371358]
[1739699351847,0.15414506,97344.0,97343.0,0.2054294]
[1739699353158,0.15514506,97344.0,97343.0,0.2054294]
[1739699354563,0.001,97344.0,97343.0,0.2054294]
[1739699370165,0.001,97344.0,97340.0,0.0317]
[1739699371074,0.2054301,97343.0,97340.0,0.0317]
[1739699372364,0.001,97344.0,97340.0,0.2371353]
[1739699372770,0.2054296,97343.0,97340.0,0.0317]
[1739699372971,0.2064296,97343.0,97340.0,0.0317]
[1739699373172,0.001,97343.0,97340.0,0.2371353]
[1739699373677,0.001,97344.0,97340.0,0.2371353]
[1739699374973,0.2708212,97347.0,97340.0,0.2371353]
[1739699375163,0.001,97343.0,97340.0,0.2371353]
[1739699375769,0.2708212,97347.0,97340.0,0.2371353]
[1739699376071,0.001,97344.0,97340.0,0.2371353]
[1739699376570,0.001,97343.0,97340.0,0.2371353]
[1739699377371,0.001,97343.0,97341.0,0.2054333]
[1739699377877,0.001,97343.0,97342.0,0.033]
[1739699378677,0.001,97344.0,97342.0,0.033]
[1739699379271,0.0654,97347.0,97342.0,0.033]
[1739699379576,0.001,97343.0,97342.0,0.2384316]
[1739699381371,0.001,97344.0,97343.0,0.2054283]
[1739699381980,0.0329,97347.0,97343.0,0.2054283]
[1739699382369,0.0329,97347.0,97344.0,0.2054273]
[1739699384871,0.0339,97347.0,97344.0,0.2054273]
[1739699385568,0.001,97347.0,97344.0,0.2054273]
[1739699386880,0.001,97347.0,97343.0,0.032]
[1739699387073,0.001,97347.0,97346.0,0.2054231]
[1739699388579,0.0314,97348.0,97346.0,0.2054231]
[1739699388778,0.001,97347.0,97346.0,0.2054231]
[1739699390376,0.0314,97348.0,97346.0,0.2054231]
[1739699390582,0.0324,97348.0,97346.0,0.2054231]
[1739699391277,0.001,97347.0,97346.0,0.2054231]
[1739699391884,0.0314,97348.0,97346.0,0.2054231]
[1739699392091,0.0324,97348.0,97346.0,0.2054231]
[1739699394082,0.001,97347.0,97346.0,0.2054231]
[1739699394884,0.205421,97347.0,97346.0,0.2054231]
[1739699397186,0.206421,97347.0,97346.0,0.2054231]
[1739699400593,0.205425,97346.0,97343.0,0.39344]
[1739699400790,0.205425,97346.0,97343.0,0.3928]
[1739699401792,0.206425,97346.0,97343.0,0.3928]
[1739699402190,0.206425,97346.0,97344.0,0.0312]
[1739699403691,0.205425,97346.0,97344.0,0.0312]
[1739699403990,0.001,97346.0,97345.0,0.2054252]
[1739699405098,0.15414506,97350.0,97344.0,0.0312]
[1739699405303,0.001,97346.0,97345.0,0.2054252]
[1739699406698,0.15414506,97350.0,97344.0,0.0312]
[1739699406899,0.15514506,97350.0,97349.0,0.2054168]
[1739699407608,0.35955596,97352.0,97349.0,0.2054168]
[1739699407908,0.35955596,97352.0,97350.0,0.0605]
[1739699409811,0.36055596,97352.0,97350.0,0.0605]
[1739699410212,0.2064109,97352.0,97350.0,0.0605]
[1739699414313,0.15410251,97351.0,97350.0,0.0605]
[1739699416606,0.15510251,97351.0,97350.0,0.0605]
[1739699418607,0.001,97351.0,97350.0,0.0302]
[1739699418807,0.09952,97351.0,97350.0,0.0302]
[1739699419217,0.09952,97351.0,97344.0,0.0309]
[1739699419413,0.0322,97350.0,97344.0,0.0639]
[1739699422514,0.0332,97350.0,97344.0,0.0639]
[1739699422709,0.18730251,97350.0,97344.0,0.0639]
[1739699426316,0.0332,97350.0,97344.0,0.0639]
[1739699428422,0.0332,97350.0,97344.0,0.2693257]
[1739699428926,0.001,97350.0,97347.0,0.2054199]
[1739699430829,0.0499523,97349.0,97347.0,0.2054199]
[1739699432021,0.0509523,97349.0,97347.0,0.2054199]
[1739699434832,0.0499523,97348.0,97347.0,0.2054199]
[1739699436933,0.0509523,97348.0,97347.0,0.2054199]
[1739699438528,0.001,97348.0,97347.0,0.2054199]
[1739699481064,0.001,97348.0,97347.0,1.7054199]
[1739699481659,0.3608,97380.0,97347.0,2.0819]
[1739699481861,0.5661514,97380.0,97379.0,0.2053535]
[1739699482057,0.2053514,97380.0,97379.0,0.2053535]
[1739699483151,0.2053514,97380.0,97379.0,0.2063535]
[1739699483368,0.0316,97382.0,97379.0,0.001]
[1739699483570,0.2053514,97380.0,97379.0,0.001]
[1739699484665,0.2053514,97380.0,97379.0,0.002]
[1739699485170,0.2053514,97380.0,97379.0,0.001]
[1739699485372,0.2053514,97380.0,97379.0,0.002]
[1739699485860,0.21606149,97380.0,97379.0,0.002]
[1739699486370,0.21606149,97380.0,97379.0,0.001]
[1739699486668,0.21606149,97380.0,97379.0,0.002]
[1739699492770,0.26600194,97380.0,97379.0,0.002]
[1739699494065,0.26600194,97380.0,97379.0,0.001]
[1739699494675,0.26600204,97380.0,97379.0,0.001]
[1739699496372,0.06065054,97380.0,97370.0,0.00015411]
[1739699496579,0.2053705,97371.0,97370.0,0.00015411]
[1739699516182,0.2383705,97371.0,97370.0,0.00015411]
[1739699516586,0.2053705,97371.0,97370.0,0.00015411]
[1739699519095,0.35941138,97371.0,97370.0,0.00015411]
[1739699521796,0.2053705,97371.0,97370.0,0.00015411]
[1739699525405,0.3608,97372.0,97371.0,0.2053705]
[1739699525605,0.3608,97372.0,97371.0,0.2373705]
[1739699526113,0.3608,97372.0,97371.0,1.7373705]
[1739699526413,0.3608,97372.0,97371.0,0.2373705]
[1739699526813,0.18444969,97376.0,97373.0,0.2053656]
[1739699527014,0.18444969,97376.0,97374.0,0.0322]
[1739699527318,0.38981029,97376.0,97374.0,0.2375627]
[1739699527614,0.38981029,97376.0,97375.0,0.236962]
[1739699529917,0.2053606,97376.0,97375.0,0.236962]
[1739699535514,0.01071009,97380.0,97375.0,0.0316]
[1739699535810,0.15407909,97381.0,97375.0,0.0316]
[1739699536013,0.15407909,97381.0,97380.0,0.2053515]
[1739699538422,0.15407909,97381.0,97380.0,0.5661515]
[1739699539017,0.15407909,97382.0,97380.0,0.5661515]
[1739699539223,0.15407909,97382.0,97381.0,0.0316]
[1739699539522,0.1,97400.0,97381.0,1.7527]
[1739699539719,0.1,97400.0,97399.0,0.5661114]
[1739699540223,0.11039171,97400.0,97399.0,0.57642436]
[1739699540423,0.11039171,97400.0,97399.0,0.5661114]
[1739699541526,0.11039171,97400.0,97399.0,2.0661114]
[1739699541717,0.11039171,97400.0,97399.0,0.5661114]
[1739699541917,0.11039171,97400.0,97399.0,0.5671114]
[1739699542318,0.11039171,97400.0,97399.0,0.5681114]
[1739699544125,0.11039171,97400.0,97399.0,2.0681114]
[1739699544722,0.1,97400.0,97399.0,2.0681114]
[1739699546832,0.1,97400.0,97399.0,0.5681114]
[1739699547330,0.1,97400.0,97399.0,2.0681114]
[1739699547730,0.0636,97410.0,97409.0,0.2052903]
[1739699548926,0.0636,97410.0,97409.0,0.2072903]
[1739699551535,0.0309,97410.0,97409.0,0.2072903]
[1739699552033,0.0309,97410.0,97409.0,0.2062903]
[1739699554341,0.0309,97410.0,97409.0,1.7062903]
[1739699557241,0.0309,97410.0,97409.0,1.73280813]
[1739699557443,0.0304,97416.0,97409.0,1.88831783]
[1739699557741,0.0304,97416.0,97415.0,0.2052776]
[1739699557942,0.0304,97416.0,97415.0,0.22132453]
[1739699558940,0.0304,97416.0,97415.0,0.22232453]
[1739699560039,0.0304,97416.0,97415.0,0.2062776]
[1739699560235,0.0304,97416.0,97415.0,0.2233234]
[1739699560636,0.0605,97416.0,97415.0,0.2233234]
[1739699562642,0.0605,97416.0,97415.0,0.0180458]
[1739699563140,0.0605,97416.0,97415.0,0.002]
[1739699563334,0.2657755,97416.0,97415.0,0.002]
[1739699571446,0.2657755,97416.0,97415.0,0.01804742]
[1739699573253,0.2657755,97416.0,97415.0,0.002]
[1739699575251,0.2657755,97416.0,97415.0,0.01804742]
[1739699576751,0.31569422,97416.0,97415.0,0.01804742]
[1739699577952,0.31569422,97416.0,97415.0,0.002]
[1739699578256,0.31569422,97416.0,97415.0,0.01804742]
[1739699581945,0.67649422,97416.0,97415.0,0.01804742]
[1739699582549,0.67653672,97416.0,97415.0,0.01804742]
[1739699584458,0.67653672,97416.0,97415.0,0.01804779]
[1739699585161,0.67653672,97416.0,97415.0,0.002]
[1739699585359,0.2053114,97399.0,97398.0,0.2211]
[1739699585658,0.5661114,97399.0,97398.0,0.23714931]
[1739699586555,0.5661114,97399.0,97398.0,0.01604931]
[1739699591656,0.2053114,97399.0,97398.0,0.01604931]
[1739699591862,0.5661114,97399.0,97398.0,0.01604931]
[1739699592859,0.2053283,97391.0,97390.0,0.00015403]
[1739699593059,0.5661283,97391.0,97390.0,0.01620595]
[1739699594765,0.5661283,97391.0,97390.0,0.01720595]
[1739699594961,0.57672991,97391.0,97390.0,0.01720595]
[1739699595460,0.57672991,97391.0,97390.0,0.01720602]
[1739699598367,0.57672991,97391.0,97390.0,0.00115403]
[1739699598954,0.57672991,97391.0,97390.0,0.01720588]
[1739699602367,0.57672991,97391.0,97390.0,0.01720545]
[1739699607266,0.37140161,97391.0,97390.0,0.01720545]
[1739699607471,0.37140161,97391.0,97390.0,0.25553585]
[1739699607969,0.3608,97391.0,97390.0,0.25553585]
[1739699608168,0.3608,97397.0,97396.0,0.2053178]
[1739699608364,0.37101367,97397.0,97396.0,0.22136922]
[1739699608770,0.37101367,97397.0,97396.0,0.2213681]
[1739699609370,0.37201367,97397.0,97396.0,0.2213681]
[1739699610170,0.57732937,97397.0,97396.0,0.2213681]
[1739699610475,0.57732937,97397.0,97396.0,0.2213679]
[1739699610875,0.57832937,97397.0,97396.0,0.2213679]
[1739699612077,0.21752937,97397.0,97396.0,0.2213679]
[1739699616686,0.21652937,97397.0,97396.0,0.22136767]
[1739699616885,0.21652937,97397.0,97396.0,0.01604987]
[1739699617085,0.21552937,97397.0,97396.0,0.01604994]
[1739699621087,0.21552937,97397.0,97396.0,0.04874994]
[1739699624599,0.21552937,97397.0,97396.0,0.25406774]
[1739699625191,0.21552937,97397.0,97396.0,0.25406745]
[1739699630207,0.21552937,97397.0,97396.0,0.25406741]
[1739699634000,0.01021367,97397.0,97396.0,0.25406741]
[1739699634202,0.2053076,97401.0,97397.0,0.2053153]
[1739699634407,0.0305,97400.0,97398.0,0.01604961]
[1739699634705,0.0305,97400.0,97399.0,0.01604961]
[1739699635110,0.0305,97400.0,97399.0,0.0160496]
[1739699635607,0.04075716,97400.0,97399.0,0.0160496]
[1739699636200,0.04175716,97400.0,97399.0,0.0160496]
[1739699637203,0.04275716,97400.0,97399.0,0.0160496]
[1739699638701,0.04275716,97400.0,97399.0,0.221361]
[1739699638901,0.002,97400.0,97399.0,0.221361]
[1739699639702,0.002,97400.0,97399.0,0.21313546]
[1739699641805,0.002,97400.0,97399.0,0.2053114]
[1739699651724,0.0312425,97416.0,97415.0,0.2052777]
[1739699651908,0.0312425,97416.0,97415.0,0.22132433]
[1739699652215,0.04151331,97416.0,97415.0,0.22132433]
[1739699652815,0.04251331,97416.0,97415.0,0.2052777]
[1739699653022,0.04351331,97416.0,97415.0,0.22232445]
[1739699656012,0.04351331,97416.0,97415.0,0.24799916]
[1739699656814,0.04347081,97416.0,97415.0,0.24799916]
[1739699657310,0.04347081,97416.0,97415.0,0.2062777]
[1739699657513,0.04347081,97416.0,97415.0,0.24799858]
[1739699657918,0.04347081,97416.0,97415.0,0.22232419]
[1739699659023,0.04351331,97416.0,97415.0,0.22232417]
[1739699661020,0.04351331,97416.0,97415.0,0.24799852]
[1739699666721,0.01231331,97416.0,97415.0,0.24799852]
[1739699668028,0.01231331,97416.0,97415.0,0.22232417]
[1739699669024,0.01231331,97416.0,97415.0,0.24799852]
[1739699673131,0.01231331,97416.0,97415.0,0.22232417]
[1739699673821,0.01231331,97416.0,97415.0,0.22232407]
[1739699678137,0.01231331,97416.0,97415.0,0.24799827]
[1739699679025,0.21758911,97416.0,97415.0,0.01704637]
[1739699680135,0.21758911,97416.0,97415.0,0.04272131]
[1739699681855,0.21758911,97416.0,97415.0,0.04272178]
[1739699685451,0.21758911,97416.0,97415.0,0.04272164]
[1739699686259,0.21758911,97416.0,97415.0,0.01704678]
[1739699687158,0.21758911,97416.0,97415.0,0.04272163]
[1739699689253,0.21758911,97416.0,97415.0,0.01704678]
[1739699690855,0.21758911,97416.0,97415.0,0.001]
[1739699691158,0.21758911,97416.0,97415.0,0.18488417]
[1739699691663,0.21758911,97416.0,97415.0,0.20093095]
[1739699691966,0.21758911,97416.0,97415.0,0.18488417]
[1739699695365,0.21758911,97416.0,97415.0,0.20093159]
[1739699699165,0.21758911,97416.0,97415.0,0.01704742]
[1739699704170,0.21758911,97416.0,97415.0,0.01704788]
[1739699708370,0.01231331,97416.0,97409.0,0.18388417]
[1739699708575,0.01231331,97416.0,97398.0,0.1838458]
[1739699708576,0.2053116,97399.0,97398.0,0.1838458]
[1739699708776,0.5661116,97399.0,97398.0,0.1838458]
[1739699711170,0.5671116,97399.0,97398.0,0.1838458]
[1739699712579,0.5671116,97399.0,97395.0,0.00154012]
[1739699712580,0.205318,97396.0,97395.0,0.00154012]
[1739699714178,0.205318,97396.0,97395.0,0.00254012]
[1739699714484,0.566118,97396.0,97395.0,0.00254012]
[1739699716872,0.57644884,97396.0,97395.0,0.00254012]
[1739699730380,0.21564884,97396.0,97395.0,0.00254012]
[1739699730582,0.57644884,97396.0,97395.0,0.00254012]
[1739699761707,0.21564884,97396.0,97395.0,0.00254012]
[1739699761911,0.57644884,97396.0,97395.0,0.00254012]
[1739699762609,0.21564884,97396.0,97395.0,0.00254012]
[1739699762912,0.57644884,97396.0,97395.0,0.00254012]
[1739699763504,0.21564884,97396.0,97395.0,0.00254012]
[1739699763912,0.57644884,97396.0,97395.0,0.00254012]
[1739699766206,0.2053369,97387.0,97386.0,0.2424298]
[1739699766412,0.5661369,97387.0,97386.0,0.2424298]
[1739699766807,0.2053538,97379.0,97369.0,0.37068081]
[1739699767117,0.5661538,97379.0,97370.0,0.0325]
[1739699768308,0.5661538,97379.0,97378.0,0.31485779]
[1739699770205,0.5661538,97379.0,97378.0,0.32185779]
[1739699771320,0.5661538,97379.0,97378.0,0.014]
[1739699773320,0.2053664,97373.0,97372.0,0.0312]
[1739699774521,0.2053664,97373.0,97372.0,0.0382]
[1739699775215,0.3608,97379.0,97377.0,0.2053571]
[1739699775612,0.05804895,97400.0,97386.0,0.205339]
[1739699775613,0.38921762,97397.0,97386.0,0.205339]
[1739699775812,0.38921762,97397.0,97386.0,1.705339]
[1739699776116,0.18390092,97397.0,97386.0,0.205339]
[1739699777218,0.18390092,97397.0,97386.0,0.207339]
[1739699777715,0.38921712,97397.0,97386.0,0.207339]
[1739699777922,0.38921712,97397.0,97386.0,0.209339]
[1739699778114,0.21564964,97396.0,97386.0,0.209339]
[1739699778319,0.00015375,97388.0,97386.0,0.209339]
[1739699778522,0.00015375,97388.0,97387.0,0.0306]
[1739699778828,0.00015375,97388.0,97387.0,0.0947]
[1739699779819,0.00015375,97388.0,97387.0,0.0967]
[1739699781216,0.00015375,97388.0,97387.0,0.0997]
[1739699783517,0.00015375,97388.0,97387.0,0.305037]
[1739699798131,0.00015375,97388.0,97387.0,0.273337]
[1739699799137,0.00015375,97388.0,97387.0,0.240937]
[1739699800430,0.20548855,97388.0,97387.0,0.005]
[1739699807142,0.00015375,97388.0,97387.0,0.2103369]
[1739699808233,0.00015375,97388.0,97387.0,0.2435369]
[1739699812141,0.00015375,97388.0,97387.0,0.6043369]
[1739699814355,0.00015375,97388.0,97387.0,2.1148198]
[1739699814660,0.00015375,97388.0,97387.0,0.6148198]
[1739699821554,0.00015375,97388.0,97387.0,2.1148198]
[1739699822866,0.2053101,97400.0,97395.0,0.2053201]
[1739699823058,0.2053101,97400.0,97399.0,0.2053116]
[1739699823953,0.21580715,97400.0,97399.0,0.2053116]
[1739699824557,0.01149705,97400.0,97399.0,0.2053116]
[1739699824758,0.01249705,97400.0,97399.0,0.2053116]
[1739699830273,0.01249705,97400.0,97399.0,0.5661116]
[1739699830462,0.002,97400.0,97399.0,0.5661116]
[1739699834567,0.002,97400.0,97399.0,0.57620716]
[1739699836570,0.002,97400.0,97399.0,0.5661116]
[1739699838569,0.0979,97417.0,97410.0,0.2052884]
[1739699839572,0.20682687,97411.0,97410.0,0.2052884]
[1739699839875,0.21182687,97411.0,97410.0,0.2052884]
[1739699840280,0.22594162,97411.0,97410.0,0.2052884]
[1739699840975,0.2052905,97409.0,97408.0,0.3608]
[1739699841794,0.02065532,97411.0,97410.0,0.2052885]
[1739699842498,0.01565532,97411.0,97410.0,0.2052885]
[1739699842797,0.2052897,97410.0,97408.0,0.3608]
[1739699843192,0.0308,97409.0,97408.0,0.3608]
[1739699843992,0.0348,97409.0,97408.0,0.3608]
[1739699845078,0.2400906,97409.0,97408.0,0.3608]
[1739699845279,0.2400906,97409.0,97408.0,0.5660927]
[1739699845768,0.2450906,97409.0,97408.0,0.5660927]
[1739699849373,0.2450906,97409.0,97399.0,0.3608]
[1739699849374,0.0398,97409.0,97399.0,0.3608]
[1739699849579,0.2053019,97404.0,97400.0,0.205309]
[1739699850981,0.002,97404.0,97400.0,0.205309]
[1739699852468,0.005,97404.0,97400.0,0.205309]
[1739699853383,0.2103018,97404.0,97400.0,0.205309]
[1739699856571,0.005,97404.0,97402.0,0.2053048]
[1739699858911,0.002,97404.0,97402.0,0.2053048]
[1739699859111,0.002,97404.0,97399.0,0.18440686]
[1739699859112,0.005,97404.0,97399.0,0.18440686]
[1739699859307,0.2053095,97400.0,97399.0,0.18372686]
[1739699860689,0.2063095,97400.0,97399.0,0.18372686]
[1739699861283,0.205318,97396.0,97395.0,0.24496915]
[1739699861491,0.566118,97396.0,97395.0,0.24496915]
[1739699865076,0.566118,97396.0,97390.0,0.20548423]
[1739699865686,0.566118,97396.0,97391.0,0.205328]
[1739699866377,0.0648,97398.0,97397.0,0.2053158]
[1739699866885,0.0648,97398.0,97391.0,0.031]
[1739699866886,0.15379254,97401.0,97400.0,0.2053095]
[1739699867984,0.15479254,97401.0,97400.0,0.2053095]
[1739699868377,0.001,97401.0,97400.0,0.2053095]
[1739699869390,0.003,97401.0,97400.0,0.2053095]
[1739699872978,0.003,97401.0,97400.0,0.5661095]
[1739699887892,0.003,97401.0,97400.0,2.0661095]
[1739699889609,0.003,97401.0,97400.0,0.5661095]
[1739699897612,0.003,97401.0,97400.0,0.74991457]
[1739699898309,0.003,97401.0,97400.0,2.24991457]
[1739699898521,0.0322,97410.0,97409.0,0.2052906]
[1739699898812,0.0322,97410.0,97409.0,0.5660906]
[1739699899512,0.0362,97410.0,97409.0,0.5660906]
[1739699899710,0.0412,97410.0,97409.0,0.5660906]
[1739699930523,0.0362,97410.0,97409.0,0.5660906]
[1739699930725,0.0362,97410.0,97409.0,0.5670906]
[1739699931727,0.0322,97410.0,97409.0,0.5670906]
[1739699931925,0.0322,97410.0,97409.0,0.5680906]
[1739699934233,0.0322,97410.0,97409.0,0.5670906]
[1739699935130,0.0322,97410.0,97409.0,0.5680906]
[1739699936542,0.0322,97410.0,97409.0,0.5670906]
[1739699937028,0.0322,97410.0,97409.0,0.5680906]
[1739699938935,0.0322,97410.0,97409.0,0.5670906]
[1739699939137,0.0322,97410.0,97409.0,0.5680906]
[1739699942538,0.0322,97410.0,97409.0,0.5670906]
[1739699942739,0.0322,97410.0,97409.0,0.5680906]
[1739699943638,0.0322,97410.0,97409.0,0.5670906]
[1739699944239,0.0322,97410.0,97409.0,0.5680906]
[1739699944431,0.0322,97410.0,97409.0,0.5670906]
[1739699945330,0.0332,97410.0,97409.0,0.5670906]
[1739699945741,0.0332,97410.0,97409.0,0.5660906]
[1739699945935,0.0342,97410.0,97409.0,0.5660906]
[1739699946442,0.0332,97410.0,97409.0,0.5660906]
[1739699946943,0.0322,97410.0,97409.0,0.5660906]
[1739699960759,0.0322,97410.0,97409.0,0.74999446]
[1739699961259,0.0303,97414.0,97409.0,0.54470386]
[1739699961460,0.0303,97414.0,97413.0,0.205282]
[1739699961646,0.0303,97414.0,97413.0,0.20524086]
[1739699963253,0.0313,97414.0,97413.0,0.20524086]
[1739699963450,0.0323,97414.0,97413.0,0.20524086]
[1739699964558,0.0313,97414.0,97413.0,0.20524086]
[1739699964755,0.0323,97414.0,97413.0,0.20524086]
[1739699965358,0.0323,97414.0,97413.0,0.56604086]
[1739699965755,0.0323,97414.0,97413.0,0.20524086]
[1739699965958,0.0323,97414.0,97413.0,0.56604086]
[1739699966257,0.0313,97414.0,97413.0,0.56604086]
[1739699966559,0.0323,97414.0,97413.0,0.56604086]
[1739699968561,0.2375799,97414.0,97413.0,0.56604086]
[1739699970558,0.2365799,97414.0,97413.0,0.56604086]
[1739699970764,0.2375799,97414.0,97413.0,0.56604086]
[1739699972966,0.2375799,97414.0,97413.0,0.74994472]
[1739699973463,0.0323,97414.0,97413.0,0.74994472]
[1739699975567,0.0313,97414.0,97413.0,0.74994472]
[1739699977263,0.0323,97414.0,97413.0,0.74994472]
[1739699978164,0.0323,97414.0,97413.0,0.56604086]
[1739699978760,0.0313,97414.0,97413.0,0.56604086]
[1739699978970,0.0323,97414.0,97413.0,0.56604086]
[1739699984671,0.0313,97414.0,97413.0,0.56604086]
[1739699984875,0.0323,97414.0,97413.0,0.56604086]
[1739699986170,0.0313,97414.0,97413.0,0.56604086]
[1739699986473,0.0323,97414.0,97413.0,0.56604086]
[1739699988776,0.0313,97414.0,97413.0,0.56604086]
[1739699988978,0.0323,97414.0,97413.0,0.56604086]
[1739699989370,0.0313,97414.0,97413.0,0.56604086]
[1739699989566,0.0323,97414.0,97413.0,0.56604086]
[1739699989973,0.0313,97414.0,97413.0,0.56604086]
[1739699990173,0.0303,97414.0,97413.0,0.3608]
[1739699991678,0.0313,97414.0,97413.0,0.3608]
[1739699991870,0.0323,97414.0,97413.0,0.3608]
[1739699995586,0.0313,97414.0,97413.0,0.3608]
[1739699995786,0.0303,97414.0,97413.0,0.3608]
[1739699996192,0.0313,97414.0,97413.0,0.3608]
[1739699996891,0.0323,97414.0,97413.0,0.3608]
[1739699997098,0.0333,97414.0,97413.0,0.3608]
[1739699997998,0.0333,97414.0,97412.0,0.2052839]
[1739699998994,0.0313,97414.0,97412.0,0.2052839]